[Event "*** SCC Grand Prix: Titled Tuesday Blitz"]
[Site "Chess.com"]
[Date "2020.07.14"]
[Round "3"]
[White "pastouche06"]
[Black "PavelChernomordik"]
[Result "1-0"]
[WhiteElo "2535"]
[BlackElo "2341"]
[TimeControl "180+1"]
[EndTime "10:27:52 PDT"]
[Termination "pastouche06 won by resignation"]

1. d4 {[%clk 0:03:00.9]} 1... g6 {[%clk 0:02:59.3]} 2. c4 {[%clk 0:03:00.3]}
2... Bg7 {[%clk 0:03:00.2]} 3. Nc3 {[%clk 0:02:56.7]} 3... d6 {[%clk 0:03:00.1]}
4. e4 {[%clk 0:02:56.7]} 4... c6 {[%clk 0:02:59.2]} 5. Nge2 {[%clk 0:02:53.2]}
5... a6 {[%clk 0:02:59.1]} 6. h4 {[%clk 0:02:42]} 6... h6 {[%clk 0:02:56.4]} 7.
h5 {[%clk 0:02:38.4]} 7... g5 {[%clk 0:02:55.6]} 8. Ng3 {[%clk 0:02:38.8]} 8...
b5 {[%clk 0:02:50.8]} 9. Be3 {[%clk 0:02:35.8]} 9... e6 {[%clk 0:02:43.3]} 10.
f3 {[%clk 0:02:29.9]} 10... Ne7 {[%clk 0:02:39]} 11. c5 {[%clk 0:02:20.5]} 11...
dxc5 {[%clk 0:02:31.1]} 12. dxc5 {[%clk 0:02:21.4]} 12... Qc7 {[%clk 0:02:30.5]}
13. Qd6 {[%clk 0:02:08.7]} 13... Be5 {[%clk 0:02:28.6]} 14. Qxc7 {[%clk
0:02:06.9]} 14... Bxc7 {[%clk 0:02:27.5]} 15. Bf2 {[%clk 0:02:02.9]} 15... f5
{[%clk 0:02:25.2]} 16. Bd3 {[%clk 0:01:59.9]} 16... Nd7 {[%clk 0:02:19.6]} 17.
exf5 {[%clk 0:01:56]} 17... Ne5 {[%clk 0:02:18.8]} 18. Be2 {[%clk 0:01:49.5]}
18... exf5 {[%clk 0:02:16.2]} 19. O-O-O {[%clk 0:01:46.7]} 19... Be6 {[%clk
0:02:14.3]} 20. Rhe1 {[%clk 0:01:45.1]} 20... Kf7 {[%clk 0:02:12.1]} 21. Bf1
{[%clk 0:01:41.9]} 21... Rhe8 {[%clk 0:01:56.4]} 22. Nge2 {[%clk 0:01:30.8]}
22... b4 {[%clk 0:01:50.9]} 23. Na4 {[%clk 0:01:25]} 23... Bxa2 {[%clk 0:01:49]}
24. Nd4 {[%clk 0:01:25.4]} 24... Rad8 {[%clk 0:01:43]} 25. b3 {[%clk 0:01:12.2]}
25... Rxd4 {[%clk 0:01:42]} 26. Rxd4 {[%clk 0:01:11.1]} 26... Bxb3 {[%clk
0:01:40.1]} 27. Rxb4 {[%clk 0:01:08.7]} 27... Be6 {[%clk 0:01:25.8]} 28. Rb7
{[%clk 0:01:02.8]} 28... Bb8 {[%clk 0:00:56]} 29. Nb6 {[%clk 0:00:57.5]} 29...
Kf6 {[%clk 0:00:40.5]} 30. Bd4 {[%clk 0:00:53.6]} 30... Nd5 {[%clk 0:00:35.8]}
31. Rxb8 {[%clk 0:00:51]} 31... Rxb8 {[%clk 0:00:30.2]} 32. Bxe5+ {[%clk
0:00:50.9]} 32... Kf7 {[%clk 0:00:31.1]} 33. Bxb8 {[%clk 0:00:51.2]} 33... Nf4
{[%clk 0:00:26.6]} 34. Bxf4 {[%clk 0:00:49.9]} 34... gxf4 {[%clk 0:00:24.5]} 35.
Bc4 {[%clk 0:00:49.9]} 1-0

[Event "*** SCC Grand Prix: Titled Tuesday Blitz"]
[Site "Chess.com"]
[Date "2020.07.14"]
[Round "3"]
[White "Mfcyryd"]
[Black "DishonorOnYourCow"]
[Result "1-0"]
[WhiteElo "2534"]
[BlackElo "2340"]
[TimeControl "180+1"]
[EndTime "10:27:52 PDT"]
[Termination "Mfcyryd won by resignation"]

1. e4 {[%clk 0:03:00.9]} 1... c5 {[%clk 0:02:52.2]} 2. Nf3 {[%clk 0:03:00.4]}
2... d6 {[%clk 0:02:52.2]} 3. d4 {[%clk 0:03:01.3]} 3... cxd4 {[%clk 0:02:52.7]}
4. Nxd4 {[%clk 0:03:02.2]} 4... Nf6 {[%clk 0:02:53.6]} 5. Nc3 {[%clk 0:03:02.8]}
5... a6 {[%clk 0:02:54.2]} 6. h4 {[%clk 0:03:03]} 6... e5 {[%clk 0:02:52.2]} 7.
Nb3 {[%clk 0:03:02.9]} 7... h5 {[%clk 0:02:44.4]} 8. Bg5 {[%clk 0:03:01.7]} 8...
Be6 {[%clk 0:02:43.9]} 9. Qd2 {[%clk 0:03:01.7]} 9... Nbd7 {[%clk 0:02:42.4]}
10. O-O-O {[%clk 0:03:01.6]} 10... Be7 {[%clk 0:02:41.7]} 11. Kb1 {[%clk
0:03:01.6]} 11... Qc7 {[%clk 0:02:34.1]} 12. Be2 {[%clk 0:03:01.2]} 12... b5
{[%clk 0:02:31.2]} 13. f3 {[%clk 0:02:59.5]} 13... Nb6 {[%clk 0:02:22.4]} 14.
Na5 {[%clk 0:02:50.7]} 14... b4 {[%clk 0:01:59.9]} 15. Nd5 {[%clk 0:02:46.3]}
15... Bxd5 {[%clk 0:01:35.3]} 16. exd5 {[%clk 0:02:47.2]} 16... Nbxd5 {[%clk
0:01:35.1]} 17. Nc4 {[%clk 0:02:39.8]} 17... O-O {[%clk 0:01:11.4]} 18. g4
{[%clk 0:02:27.7]} 18... Rab8 {[%clk 0:01:09.8]} 19. Bxf6 {[%clk 0:02:16.9]}
19... Nxf6 {[%clk 0:01:09.4]} 20. g5 {[%clk 0:02:11.6]} 20... Nd7 {[%clk
0:00:56.8]} 21. f4 {[%clk 0:02:11.5]} 21... exf4 {[%clk 0:00:47.3]} 22. Qxf4
{[%clk 0:02:12.4]} 22... Ne5 {[%clk 0:00:46.5]} 23. Ne3 {[%clk 0:02:03.9]} 23...
g6 {[%clk 0:00:37.8]} 24. Nd5 {[%clk 0:01:56.8]} 24... Qb7 {[%clk 0:00:32.1]}
25. Rhf1 {[%clk 0:01:46.3]} 25... Rbc8 {[%clk 0:00:27.8]} 26. Bxa6 {[%clk
0:01:43]} 26... Qxa6 {[%clk 0:00:18.6]} 27. Nxe7+ {[%clk 0:01:42.7]} 27... Kh7
{[%clk 0:00:18.8]} 28. Nxc8 {[%clk 0:01:42.2]} 28... Rxc8 {[%clk 0:00:19.7]} 29.
Rfe1 {[%clk 0:01:25.6]} 29... Ra8 {[%clk 0:00:17.9]} 30. a3 {[%clk 0:01:21.6]}
30... bxa3 {[%clk 0:00:17.3]} 31. Rxe5 {[%clk 0:01:18.3]} 31... dxe5 {[%clk
0:00:15.2]} 32. Qxf7+ {[%clk 0:01:18.3]} 32... Kh8 {[%clk 0:00:15.4]} 33. Rd7
{[%clk 0:01:11.6]} 33... a2+ {[%clk 0:00:04.4]} 34. Ka1 {[%clk 0:01:10.4]} 1-0

[Event "*** SCC Grand Prix: Titled Tuesday Blitz"]
[Site "Chess.com"]
[Date "2020.07.14"]
[Round "3"]
[White "ShahMatKanal"]
[Black "Aronyak1"]
[Result "0-1"]
[WhiteElo "2497"]
[BlackElo "2749"]
[TimeControl "180+1"]
[EndTime "10:27:55 PDT"]
[Termination "Aronyak1 won by resignation"]

1. d4 {[%clk 0:03:00.9]} 1... d5 {[%clk 0:02:58.2]} 2. c4 {[%clk 0:02:59.4]}
2... dxc4 {[%clk 0:02:56.8]} 3. e3 {[%clk 0:02:59.4]} 3... e6 {[%clk 0:02:56.2]}
4. Bxc4 {[%clk 0:02:59.5]} 4... Nf6 {[%clk 0:02:56.8]} 5. Nf3 {[%clk 0:02:59.4]}
5... c5 {[%clk 0:02:56.9]} 6. O-O {[%clk 0:02:59.3]} 6... a6 {[%clk 0:02:56.9]}
7. Qe2 {[%clk 0:02:56.4]} 7... b5 {[%clk 0:02:56.5]} 8. Bd3 {[%clk 0:02:50.2]}
8... Nbd7 {[%clk 0:02:55]} 9. a4 {[%clk 0:02:47.1]} 9... c4 {[%clk 0:02:40.6]}
10. Bc2 {[%clk 0:02:44.5]} 10... Bb7 {[%clk 0:02:40.8]} 11. b3 {[%clk
0:02:30.8]} 11... cxb3 {[%clk 0:02:39.2]} 12. Bxb3 {[%clk 0:02:30.5]} 12... b4
{[%clk 0:02:36.3]} 13. a5 {[%clk 0:02:24.3]} 13... Be7 {[%clk 0:02:31.9]} 14.
Nbd2 {[%clk 0:02:23]} 14... Nd5 {[%clk 0:02:23.5]} 15. Bb2 {[%clk 0:02:16]}
15... Rc8 {[%clk 0:02:23]} 16. Qd3 {[%clk 0:02:01.7]} 16... O-O {[%clk
0:02:18.2]} 17. Rfd1 {[%clk 0:01:48.4]} 17... Nc3 {[%clk 0:02:15.4]} 18. Rdc1
{[%clk 0:01:43.6]} 18... Nc5 {[%clk 0:02:14.3]} 19. Qf1 {[%clk 0:01:32.1]} 19...
Nxb3 {[%clk 0:02:12.8]} 20. Nxb3 {[%clk 0:01:32.1]} 20... Qd5 {[%clk 0:02:02.5]}
21. Nbd2 {[%clk 0:01:26.7]} 21... Rc7 {[%clk 0:01:55.9]} 22. Qd3 {[%clk
0:01:13.8]} 22... Rfc8 {[%clk 0:01:53.7]} 23. Kh1 {[%clk 0:01:09.2]} 23... h6
{[%clk 0:01:45.9]} 24. Rc2 {[%clk 0:01:01.6]} 24... Ne4 {[%clk 0:01:38.4]} 25.
Qxe4 {[%clk 0:00:18.8]} 25... Rxc2 {[%clk 0:01:29.9]} 26. Qxd5 {[%clk
0:00:19.1]} 26... Bxd5 {[%clk 0:01:30.3]} 27. Rb1 {[%clk 0:00:09.6]} 27... Ba2
{[%clk 0:01:29]} 28. Ra1 {[%clk 0:00:06.7]} 28... Rxb2 {[%clk 0:01:28.3]} 29. h3
{[%clk 0:00:06.3]} 29... Bd5 {[%clk 0:01:26.8]} 30. e4 {[%clk 0:00:05.7]} 30...
Bb7 {[%clk 0:01:26.4]} 31. Kg1 {[%clk 0:00:04.1]} 31... Rcc2 {[%clk 0:01:25.9]}
32. Rd1 {[%clk 0:00:03.2]} 32... b3 {[%clk 0:01:23.1]} 33. d5 {[%clk 0:00:03.2]}
33... exd5 {[%clk 0:01:23]} 34. exd5 {[%clk 0:00:03.8]} 34... Bxd5 {[%clk
0:01:23.6]} 35. Nf1 {[%clk 0:00:03]} 35... Bxf3 {[%clk 0:01:23.5]} 36. gxf3
{[%clk 0:00:02.9]} 36... Rxf2 {[%clk 0:01:23.3]} 37. Re1 {[%clk 0:00:02.2]}
37... Bc5 {[%clk 0:01:22.3]} 38. Ne3 {[%clk 0:00:02.1]} 38... Bxe3 {[%clk
0:01:21]} 39. Rxe3 {[%clk 0:00:02.5]} 39... Rfc2 {[%clk 0:01:21.3]} 0-1

[Event "*** SCC Grand Prix: Titled Tuesday Blitz"]
[Site "Chess.com"]
[Date "2020.07.14"]
[Round "3"]
[White "Gahan-MG"]
[Black "Yana_pro"]
[Result "1-0"]
[WhiteElo "2475"]
[BlackElo "2223"]
[TimeControl "180+1"]
[EndTime "10:27:55 PDT"]
[Termination "Gahan-MG won by checkmate"]

1. e4 {[%clk 0:03:00.9]} 1... e5 {[%clk 0:02:57]} 2. Nf3 {[%clk 0:02:59.7]} 2...
d5 {[%clk 0:02:57.4]} 3. Nxe5 {[%clk 0:02:57.4]} 3... dxe4 {[%clk 0:02:56.9]} 4.
d4 {[%clk 0:02:55.9]} 4... Nd7 {[%clk 0:02:56.3]} 5. Nxd7 {[%clk 0:02:49.8]}
5... Qxd7 {[%clk 0:02:57.2]} 6. Nc3 {[%clk 0:02:49.5]} 6... Nf6 {[%clk
0:02:49.5]} 7. Bg5 {[%clk 0:02:48.9]} 7... Bb4 {[%clk 0:02:48]} 8. Bxf6 {[%clk
0:02:40.8]} 8... Bxc3+ {[%clk 0:02:45.6]} 9. bxc3 {[%clk 0:02:40.5]} 9... gxf6
{[%clk 0:02:46.5]} 10. Qd2 {[%clk 0:02:33.3]} 10... Qg4 {[%clk 0:02:29.4]} 11.
h3 {[%clk 0:02:30.7]} 11... Qg5 {[%clk 0:02:26.7]} 12. Rd1 {[%clk 0:02:16.3]}
12... Bf5 {[%clk 0:02:18.3]} 13. h4 {[%clk 0:02:09.6]} 13... Qxd2+ {[%clk
0:02:00]} 14. Kxd2 {[%clk 0:02:08.7]} 14... O-O-O {[%clk 0:02:00.9]} 15. Ke3
{[%clk 0:02:08]} 15... Rhe8 {[%clk 0:01:58.6]} 16. Bc4 {[%clk 0:02:05.6]} 16...
Be6 {[%clk 0:01:57.4]} 17. Bb3 {[%clk 0:01:59]} 17... Bg4 {[%clk 0:01:41.4]} 18.
Rd2 {[%clk 0:01:57.6]} 18... Re7 {[%clk 0:01:28.7]} 19. Re1 {[%clk 0:01:54]}
19... h5 {[%clk 0:01:21.8]} 20. Kf4 {[%clk 0:01:51.3]} 20... f5 {[%clk
0:01:18.4]} 21. f3 {[%clk 0:01:46.9]} 21... Rg8 {[%clk 0:00:55.5]} 22. fxg4
{[%clk 0:01:39.3]} 22... Rxg4+ {[%clk 0:00:49.4]} 23. Kxf5 {[%clk 0:01:39.3]}
23... Rxh4 {[%clk 0:00:48.2]} 24. Rde2 {[%clk 0:01:38.4]} 24... Rg4 {[%clk
0:00:39.3]} 25. Rxe4 {[%clk 0:01:34.6]} 25... Rexe4 {[%clk 0:00:40.2]} 26. Rxe4
{[%clk 0:01:35.5]} 26... Rxg2 {[%clk 0:00:41]} 27. Bxf7 {[%clk 0:01:28.8]} 27...
Rxc2 {[%clk 0:00:40.1]} 28. Re3 {[%clk 0:01:24.8]} 28... Rf2+ {[%clk 0:00:37.5]}
29. Kg6 {[%clk 0:01:19.8]} 29... h4 {[%clk 0:00:37.8]} 30. Be6+ {[%clk
0:01:15.2]} 30... Kd8 {[%clk 0:00:38.1]} 31. Kg5 {[%clk 0:01:12.3]} 31... h3
{[%clk 0:00:33.2]} 32. Bxh3 {[%clk 0:01:10.4]} 32... Rxa2 {[%clk 0:00:33]} 33.
Be6 {[%clk 0:01:06.9]} 33... Rb2 {[%clk 0:00:32.5]} 34. Kf6 {[%clk 0:01:05.2]}
34... a5 {[%clk 0:00:32.3]} 35. Rh3 {[%clk 0:01:04]} 35... c6 {[%clk 0:00:32.1]}
36. c4 {[%clk 0:01:02]} 36... Rf2+ {[%clk 0:00:27.5]} 37. Bf5 {[%clk 0:01:01.8]}
37... a4 {[%clk 0:00:25.6]} 38. c5 {[%clk 0:00:59.4]} 38... Rd2 {[%clk
0:00:21.8]} 39. Rh8+ {[%clk 0:00:58.3]} 39... Kc7 {[%clk 0:00:20.6]} 40. Rc8#
{[%clk 0:00:59.2]} 1-0

[Event "*** SCC Grand Prix: Titled Tuesday Blitz"]
[Site "Chess.com"]
[Date "2020.07.14"]
[Round "3"]
[White "winniethepooh04"]
[Black "Agnes66678"]
[Result "0-1"]
[WhiteElo "2173"]
[BlackElo "2416"]
[TimeControl "180+1"]
[EndTime "10:27:55 PDT"]
[Termination "Agnes66678 won by resignation"]

1. e4 {[%clk 0:03:00.9]} 1... e5 {[%clk 0:02:56.8]} 2. Nf3 {[%clk 0:02:59.5]}
2... Nf6 {[%clk 0:02:56.5]} 3. Nxe5 {[%clk 0:02:58.5]} 3... Nxe4 {[%clk
0:02:56.1]} 4. Nf3 {[%clk 0:02:58.8]} 4... d5 {[%clk 0:02:54.5]} 5. d4 {[%clk
0:02:57.7]} 5... Bd6 {[%clk 0:02:54.1]} 6. Bd3 {[%clk 0:02:58]} 6... O-O {[%clk
0:02:54.5]} 7. O-O {[%clk 0:02:58.4]} 7... Bg4 {[%clk 0:02:54.4]} 8. h3 {[%clk
0:02:55.9]} 8... Bh5 {[%clk 0:02:52.6]} 9. c4 {[%clk 0:02:52.5]} 9... c6 {[%clk
0:02:51.7]} 10. Nc3 {[%clk 0:02:49.8]} 10... Nxc3 {[%clk 0:02:49.6]} 11. bxc3
{[%clk 0:02:48.5]} 11... dxc4 {[%clk 0:02:50.5]} 12. Bxc4 {[%clk 0:02:35.8]}
12... Nd7 {[%clk 0:02:48.9]} 13. a4 {[%clk 0:02:32.2]} 13... Nb6 {[%clk
0:02:44.6]} 14. Bb3 {[%clk 0:02:30.1]} 14... Nd5 {[%clk 0:02:42.9]} 15. c4
{[%clk 0:02:14.2]} 15... Nf4 {[%clk 0:02:39.2]} 16. Bxf4 {[%clk 0:02:11.2]}
16... Bxf4 {[%clk 0:02:38.4]} 17. d5 {[%clk 0:02:02.1]} 17... Qf6 {[%clk
0:02:25.8]} 18. Ra2 {[%clk 0:01:46]} 18... Rad8 {[%clk 0:02:24.1]} 19. Qd4
{[%clk 0:01:37.1]} 19... Qxd4 {[%clk 0:02:13.9]} 20. Nxd4 {[%clk 0:01:35.8]}
20... c5 {[%clk 0:02:13.8]} 21. Nb5 {[%clk 0:01:10.5]} 21... a6 {[%clk
0:02:07.8]} 22. Nc3 {[%clk 0:01:10.5]} 22... Bg6 {[%clk 0:02:04.1]} 23. Ne2
{[%clk 0:01:08.9]} 23... Bd6 {[%clk 0:02:01.8]} 24. f4 {[%clk 0:01:06.3]} 24...
f6 {[%clk 0:01:59.5]} 25. f5 {[%clk 0:01:04.9]} 25... Bf7 {[%clk 0:01:58.8]} 26.
Nf4 {[%clk 0:01:05.3]} 26... Bxf4 {[%clk 0:01:56.3]} 27. Rxf4 {[%clk 0:01:04.7]}
27... Rfe8 {[%clk 0:01:57.2]} 28. Kf2 {[%clk 0:01:03.2]} 28... Re5 {[%clk
0:01:56.6]} 29. Re2 {[%clk 0:01:01.2]} 29... Rde8 {[%clk 0:01:55.8]} 30. Rxe5
{[%clk 0:00:53.3]} 30... Rxe5 {[%clk 0:01:56.1]} 31. Bc2 {[%clk 0:00:51.8]}
31... b5 {[%clk 0:01:51.3]} 32. axb5 {[%clk 0:00:41.8]} 32... axb5 {[%clk
0:01:52.2]} 33. Re4 {[%clk 0:00:41.6]} 33... Rxe4 {[%clk 0:01:36.4]} 34. Bxe4
{[%clk 0:00:40.7]} 34... b4 {[%clk 0:01:37.3]} 35. d6 {[%clk 0:00:36.1]} 35...
Kf8 {[%clk 0:01:34.8]} 36. Ke3 {[%clk 0:00:27.7]} 36... Bxc4 {[%clk 0:01:32.4]}
37. Kd2 {[%clk 0:00:27.1]} 37... Bf1 {[%clk 0:01:25.7]} 38. Kc2 {[%clk
0:00:20.4]} 38... c4 {[%clk 0:01:25.1]} 39. h4 {[%clk 0:00:17.6]} 39... Ke8
{[%clk 0:01:23.5]} 40. g4 {[%clk 0:00:17.8]} 40... Kd7 {[%clk 0:01:22.8]} 41. g5
{[%clk 0:00:17.7]} 41... Kxd6 {[%clk 0:01:22.3]} 42. g6 {[%clk 0:00:16.4]} 42...
h6 {[%clk 0:01:21.7]} 0-1

[Event "*** SCC Grand Prix: Titled Tuesday Blitz"]
[Site "Chess.com"]
[Date "2020.07.14"]
[Round "3"]
[White "PawnEatingZombie"]
[Black "okriak"]
[Result "1/2-1/2"]
[WhiteElo "2221"]
[BlackElo "2701"]
[TimeControl "180+1"]
[EndTime "10:27:57 PDT"]
[Termination "Game drawn by agreement"]

1. d4 {[%clk 0:03:00.9]} 1... d5 {[%clk 0:02:58.4]} 2. c4 {[%clk 0:03:00.9]}
2... e6 {[%clk 0:02:58.7]} 3. Nc3 {[%clk 0:03:00.9]} 3... c6 {[%clk 0:02:58.6]}
4. e3 {[%clk 0:03:00.2]} 4... Nf6 {[%clk 0:02:58.1]} 5. Nf3 {[%clk 0:03:00.2]}
5... Nbd7 {[%clk 0:02:58.2]} 6. Qc2 {[%clk 0:03:00.3]} 6... b6 {[%clk
0:02:57.8]} 7. b3 {[%clk 0:02:57.8]} 7... Bb7 {[%clk 0:02:57.6]} 8. Bd3 {[%clk
0:02:57.7]} 8... Be7 {[%clk 0:02:57.5]} 9. O-O {[%clk 0:02:57]} 9... O-O {[%clk
0:02:57]} 10. Bb2 {[%clk 0:02:57]} 10... h6 {[%clk 0:02:56.8]} 11. Rfd1 {[%clk
0:02:53.1]} 11... Rc8 {[%clk 0:02:52.4]} 12. Rac1 {[%clk 0:02:42.2]} 12... Qc7
{[%clk 0:02:50.5]} 13. e4 {[%clk 0:02:38.1]} 13... dxe4 {[%clk 0:02:50]} 14.
Nxe4 {[%clk 0:02:38]} 14... Nxe4 {[%clk 0:02:35.3]} 15. Bxe4 {[%clk 0:02:38.9]}
15... Nf6 {[%clk 0:02:35.5]} 16. c5 {[%clk 0:02:30.2]} 16... Nxe4 {[%clk
0:02:34.9]} 17. Qxe4 {[%clk 0:02:29.1]} 17... Bf6 {[%clk 0:02:29.5]} 18. Ne5
{[%clk 0:02:26.5]} 18... Bxe5 {[%clk 0:02:24.6]} 19. dxe5 {[%clk 0:02:24]} 19...
bxc5 {[%clk 0:02:23.9]} 20. Rxc5 {[%clk 0:02:19]} 20... Rfd8 {[%clk 0:02:23.1]}
21. Rd6 {[%clk 0:01:38]} 21... Rxd6 {[%clk 0:02:06.1]} 22. exd6 {[%clk
0:01:38.9]} 22... Qxd6 {[%clk 0:02:06.5]} 23. Qg4 {[%clk 0:01:39.3]} 23... g6
{[%clk 0:02:05]} 24. Rc1 {[%clk 0:01:27.7]} 24... c5 {[%clk 0:02:02.6]} 25. Qh4
{[%clk 0:01:19.9]} 25... Rd8 {[%clk 0:01:40]} 26. f3 {[%clk 0:01:01.2]} 26... h5
{[%clk 0:01:07.9]} 27. Qf6 {[%clk 0:00:58.6]} 27... e5 {[%clk 0:01:08]} 28. Bxe5
{[%clk 0:00:47.8]} 28... Qxf6 {[%clk 0:01:05.9]} 29. Bxf6 {[%clk 0:00:47.7]}
29... Rc8 {[%clk 0:00:58.3]} 30. Rd1 {[%clk 0:00:44.6]} 30... Bc6 {[%clk
0:00:53.1]} 31. Rd6 {[%clk 0:00:42.1]} 31... Be8 {[%clk 0:00:50.7]} 32. h4
{[%clk 0:00:38.8]} 32... Rc6 {[%clk 0:00:50.4]} 33. Rxc6 {[%clk 0:00:32.7]}
33... Bxc6 {[%clk 0:00:50.1]} 34. Kf2 {[%clk 0:00:32.9]} 34... Kf8 {[%clk
0:00:49.4]} 35. g4 {[%clk 0:00:31.9]} 35... Ke8 {[%clk 0:00:48.9]} 36. Ke3
{[%clk 0:00:31.6]} 36... Kd7 {[%clk 0:00:48.6]} 37. gxh5 {[%clk 0:00:30.5]}
37... gxh5 {[%clk 0:00:48.4]} 38. Bg7 {[%clk 0:00:29.1]} 38... Ke6 {[%clk
0:00:48]} 39. a3 {[%clk 0:00:27.3]} 1/2-1/2

[Event "*** SCC Grand Prix: Titled Tuesday Blitz"]
[Site "Chess.com"]
[Date "2020.07.14"]
[Round "3"]
[White "ckgchess"]
[Black "Shushik"]
[Result "1-0"]
[WhiteElo "2644"]
[BlackElo "2222"]
[TimeControl "180+1"]
[EndTime "10:27:58 PDT"]
[Termination "ckgchess won by resignation"]

1. e4 {[%clk 0:03:00.8]} 1... e5 {[%clk 0:03:00.2]} 2. Nc3 {[%clk 0:02:54.8]}
2... Nf6 {[%clk 0:02:58.8]} 3. g3 {[%clk 0:02:54.9]} 3... c6 {[%clk 0:02:56.5]}
4. d4 {[%clk 0:02:54.5]} 4... exd4 {[%clk 0:02:54.9]} 5. Qxd4 {[%clk 0:02:53.4]}
5... d6 {[%clk 0:02:41.1]} 6. Bg5 {[%clk 0:02:48.3]} 6... Nbd7 {[%clk
0:02:39.4]} 7. O-O-O {[%clk 0:02:47.5]} 7... h6 {[%clk 0:02:38.7]} 8. Bf4 {[%clk
0:02:47.2]} 8... Be7 {[%clk 0:02:18.6]} 9. Bxd6 {[%clk 0:02:46.3]} 9... O-O
{[%clk 0:02:18.4]} 10. e5 {[%clk 0:02:44]} 10... Bxd6 {[%clk 0:02:13.2]} 11.
Qxd6 {[%clk 0:02:43.1]} 11... Ne8 {[%clk 0:02:12.6]} 12. Qd4 {[%clk 0:02:42.9]}
12... Nc7 {[%clk 0:02:07.8]} 13. f4 {[%clk 0:02:41.7]} 13... Ne6 {[%clk
0:01:59.9]} 14. Qd6 {[%clk 0:02:41.6]} 14... a5 {[%clk 0:01:53.9]} 15. Nf3
{[%clk 0:02:40.8]} 15... a4 {[%clk 0:01:30.3]} 16. a3 {[%clk 0:02:38.7]} 16...
Qb6 {[%clk 0:01:23.9]} 17. Kb1 {[%clk 0:02:29.9]} 17... Rd8 {[%clk 0:00:53.3]}
18. Bc4 {[%clk 0:02:28.4]} 18... Nxe5 {[%clk 0:00:47.4]} 19. Qxe5 {[%clk
0:02:26.3]} 19... Re8 {[%clk 0:00:39.6]} 20. Rhe1 {[%clk 0:02:17.2]} 20... Ra5
{[%clk 0:00:37.4]} 21. Qe3 {[%clk 0:02:12.1]} 21... Qc7 {[%clk 0:00:29.4]} 22.
f5 {[%clk 0:02:11.3]} 22... Rxf5 {[%clk 0:00:27.9]} 23. Nd4 {[%clk 0:01:37.8]}
23... Rf6 {[%clk 0:00:26.1]} 24. Rf1 {[%clk 0:01:36.6]} 24... Rxf1 {[%clk
0:00:24.6]} 25. Rxf1 {[%clk 0:01:37.5]} 25... b5 {[%clk 0:00:22.9]} 26. Ba2
{[%clk 0:01:27.7]} 26... Qd7 {[%clk 0:00:16.9]} 27. Nxe6 {[%clk 0:01:25.1]}
27... Qb7 {[%clk 0:00:14.8]} 28. Nc5 {[%clk 0:01:15.5]} 28... Rxe3 {[%clk
0:00:14.5]} 29. Nxb7 {[%clk 0:01:15.8]} 29... Bxb7 {[%clk 0:00:14.6]} 30. Bxf7+
{[%clk 0:01:15.9]} 30... Kh7 {[%clk 0:00:13.1]} 31. Bh5 {[%clk 0:01:14.6]} 31...
Bc8 {[%clk 0:00:12.6]} 32. Bf3 {[%clk 0:01:13.6]} 32... Bd7 {[%clk 0:00:11.2]}
33. Be4+ {[%clk 0:01:14]} 33... Kg8 {[%clk 0:00:09.6]} 34. Rd1 {[%clk
0:01:14.9]} 34... Be6 {[%clk 0:00:08.7]} 35. Bxc6 {[%clk 0:01:13.9]} 35... Kh7
{[%clk 0:00:07.9]} 36. Bxb5 {[%clk 0:01:14.1]} 1-0

[Event "*** SCC Grand Prix: Titled Tuesday Blitz"]
[Site "Chess.com"]
[Date "2020.07.14"]
[Round "3"]
[White "luizwas"]
[Black "mfwagnerpeixoto"]
[Result "0-1"]
[WhiteElo "1812"]
[BlackElo "2240"]
[TimeControl "180+1"]
[EndTime "10:28:00 PDT"]
[Termination "mfwagnerpeixoto won by checkmate"]

1. e4 {[%clk 0:03:00.9]} 1... c5 {[%clk 0:02:58.1]} 2. Nf3 {[%clk 0:03:00.5]}
2... Nc6 {[%clk 0:02:58.2]} 3. d4 {[%clk 0:03:00.5]} 3... cxd4 {[%clk
0:02:59.1]} 4. Nxd4 {[%clk 0:03:00.6]} 4... e5 {[%clk 0:02:57.8]} 5. Nb5 {[%clk
0:02:59.5]} 5... a6 {[%clk 0:02:56.6]} 6. Nd6+ {[%clk 0:02:58.7]} 6... Bxd6
{[%clk 0:02:57.1]} 7. Qxd6 {[%clk 0:02:58.9]} 7... Qf6 {[%clk 0:02:57.6]} 8. Qd1
{[%clk 0:02:51.5]} 8... d5 {[%clk 0:02:52.7]} 9. exd5 {[%clk 0:02:41.6]} 9...
Nd4 {[%clk 0:02:46.4]} 10. Be3 {[%clk 0:02:37.4]} 10... Ne7 {[%clk 0:02:35.3]}
11. Nc3 {[%clk 0:02:32.8]} 11... Nef5 {[%clk 0:02:30.3]} 12. Ne4 {[%clk
0:02:12.8]} 12... Qg6 {[%clk 0:02:28.7]} 13. Bxd4 {[%clk 0:02:10.6]} 13... Nxd4
{[%clk 0:02:26.9]} 14. Qd3 {[%clk 0:01:53.5]} 14... Bf5 {[%clk 0:02:18.7]} 15.
f3 {[%clk 0:01:47.4]} 15... Rd8 {[%clk 0:01:36.8]} 16. g4 {[%clk 0:01:43.6]}
16... Nxf3+ {[%clk 0:01:29.5]} 17. Kf2 {[%clk 0:01:14.3]} 17... Bxe4 {[%clk
0:01:27.7]} 18. Qb3 {[%clk 0:01:07.4]} 18... Qxg4 {[%clk 0:01:06.2]} 19. Qa4+
{[%clk 0:00:48.5]} 19... b5 {[%clk 0:00:59.4]} 20. Bxb5+ {[%clk 0:00:46.9]}
20... axb5 {[%clk 0:00:58.2]} 21. Qxb5+ {[%clk 0:00:47.8]} 21... Kf8 {[%clk
0:00:55.2]} 22. Rhg1 {[%clk 0:00:42.4]} 22... Nxg1 {[%clk 0:00:52.7]} 23. Rxg1
{[%clk 0:00:40.6]} 23... Qf3+ {[%clk 0:00:52.6]} 24. Ke1 {[%clk 0:00:40.3]}
24... Qe3+ {[%clk 0:00:46.9]} 25. Kf1 {[%clk 0:00:36.2]} 25... h5 {[%clk
0:00:39.1]} 26. Qb4+ {[%clk 0:00:21.7]} 26... Kg8 {[%clk 0:00:34.9]} 27. d6
{[%clk 0:00:20.2]} 27... Rh6 {[%clk 0:00:31.6]} 28. Qa5 {[%clk 0:00:15.1]} 28...
Rf6# {[%clk 0:00:29.4]} 0-1